[Event "34th Pula Open 2022"]
[Site "Pula"]
[Date "2022.06.21"]
[Round "5.7"]
[White "Lindgren, Philip"]
[Black "Makovec, Bruno"]
[Result "1/2-1/2"]
[ECO "E05"]
[WhiteElo "2369"]
[BlackElo "2215"]
[Annotator "TA"]
[PlyCount "67"]
[EventDate "2022.06.18"]
[EventType "swiss"]
[EventCountry "CRO"]
[SourceTitle "playchess.com"]
[Source "ChessBase"]
[SourceQuality "1"]
[TimeControl "5400+30"]

{[%evp 18,67,16,12,8,0,0,12,4,-6,0,-4,-12,-13,-7,-8,-8,-21,-24,-17,-10,-17,-3,-3,0,0,-6,-6,0,-15,0,0,11,-13,0,-47,-25,-41,-23,-29,0,0,0,0,0,0,0,0,0,0,0,0]} 1. d4 {[%emt 0:00:50]} Nf6 {[%emt 0:00:09]} 2. c4 {[%emt 0:00:07]} e6 {[%emt 0:00:03]} 3. Nf3 {[%emt 0:00:12]} d5 {[%emt 0:00:04]} 4. g3 {[%emt 0:00:53]} Be7 {[%emt 0:01:43]} 5. Bg2 {[%emt 0:00:44]} O-O {[%emt 0:00:07]} 6. O-O {[%emt 0:00:48]} dxc4 {[%emt 0:01:01]} 7. Qc2 {[%emt 0:00:48]} a6 {[%emt 0:00:11]} 8. a4 {[%emt 0:00:59]} Bd7 {[%emt 0:00:16]} 9. Qxc4 {[%emt 0:00:33]} Bc6 {[%emt 0:00:14]} 10. Bf4 {[%emt 0:00:30]} Bd6 {[%emt 0:01:45] E05: Open Catalan: 5 Nf3 Be7.} 11. Qc1 {[%emt 0:01:08]} a5 {[%emt 0:01:31]} 12. Nc3 {[%emt 0:01:34]} Na6 {[%emt 0:03:50]} 13. Bg5 {[%emt 0:14:07][%cal Oe2e4]} h6 {[%emt 0:04:17]} 14. Bxf6 {[%emt 0:09:08]} Qxf6 {[%emt 0:01:42]} 15. e4 {[%emt 0:00:28] [#] aiming for e5.} e5 {[%emt 0:04:58]} 16. dxe5 {[%emt 0:01:27]} Bxe5 {[%emt 0:00:09]} 17. Nxe5 {[%emt 0:00:05]} Qxe5 {[%emt 0:00:08]} 18. Nd5 {[%emt 0:00:06]} Bxd5 {[%emt 0:04:35]} 19. exd5 {[%emt 0:00:12]} Qd6 {[%emt 0:10:50] [#]} 20. Qc4 $146 {[%emt 0:03:11]} ({Predecessor:} 20. Re1 Rfe8 21. Qc4 Nc5 22. Qb5 Kf8 23. h4 b6 24. Rac1 Rad8 25. b4 axb4 26. Qxb4 Rxe1+ 27. Rxe1 {0-1 (40) Leenhouts,K (2491)-Hammer,J (2652) Helsingor 2016}) 20... b6 {[%emt 0:26:27]} 21. Rfe1 {[%emt 0:07:03]} Nc5 {[%emt 0:05:13]} 22. Qb5 {[%emt 0:00:28]} Rad8 {[%emt 0:11:10]} 23. Rad1 {[%emt 0:25:27]} Rd7 {[%emt 0:07:34]} 24. b3 {[%emt 0:06:10]} Rfd8 {[%emt 0:03:42]} 25. Bf1 {[%emt 0:01:30]} Re7 {[%emt 0:01:11]} 26. Bc4 {[%emt 0:04:17]} (26. Rxe7 $11 Qxe7 27. b4 axb4 28. Qxb4) 26... Kf8 {[%emt 0:01:53]} 27. Rxe7 {[%emt 0:04:51]} Qxe7 {[%emt 0:00:51]} 28. b4 {[%emt 0:00:24]} axb4 {[%emt 0:01:06]} (28... Ne4 $5 {[%cal Re4c3]} 29. Re1 Nc3 30. Rxe7 Nxb5 $15) 29. Qxb4 {[%emt 0:00:09] The position is equal.} Qd6 {[%emt 0:01:13]} 30. Bb5 {[%emt 0:00:52]} Kg8 {[%emt 0:02:12]} 31. Bc6 {[%emt 0:00:56]} Nb7 {[%emt 0:02:12]} 32. Qe4 {[%emt 0:09:58]} Nc5 {[%emt 0:01:26]} 33. Qe3 {[%emt 0:00:47]} Nd7 {[%emt 0:01:09]} 34. Re1 {[%emt 0:02:33] Weighted Error Value: White=0.05 (flawless) /Black=0.06 (flawless)} 1/2-1/2

[Event "34th Pula Open 2022"]
[Site "Pula"]
[Date "2022.06.21"]
[Round "5.8"]
[White "Rohacek, Miroslav"]
[Black "Zufic, Miroslav"]
[Result "0-1"]
[ECO "E11"]
[WhiteElo "2188"]
[BlackElo "2384"]
[Annotator "TA"]
[PlyCount "118"]
[EventDate "2022.06.18"]
[EventType "swiss"]
[EventCountry "CRO"]
[SourceTitle "playchess.com"]
[Source "ChessBase"]
[SourceQuality "1"]
[TimeControl "5400+30"]

{[%evp 14,118,10,0,19,0,11,12,24,-18,-21,-25,-23,-74,-79,-71,-76,-76,-79,-78,-7,-14,-14,-12,-10,-34,-20,-34,-7,-53,-47,-54,-43,-61,-27,-34,-40,-56,0,0,2,2,14,0,9,13,14,10,25,25,26,27,175,238,220,-10,-10,-11,-12,-10,-11,-11,-11,-72,-67,-64,-63,-63,-68,-90,-90,-80,-93,-175,-79,-319,-300,-431,-461,-464,-460,-456,-422,-456,-482,-468,-474,-415,-395,-623,-606,-1489,-1573,-2039,-1766,-29972,-29959,-12387,-29967,-29964,-7870,-29971,-29975,-29975,-29976,-29977,-29974]} 1. d4 {[%emt 0:00:20]} Nf6 {[%emt 0:00:32]} 2. c4 {[%emt 0:00:37]} e6 {[%emt 0:00:08]} 3. Nf3 {[%emt 0:00:28]} d5 {[%emt 0:00:05]} 4. g3 {[%emt 0:00:32]} Bb4+ {[%emt 0:00:19]} 5. Bd2 {[%emt 0:01:27]} Be7 {[%emt 0:00:07]} 6. Bg2 {[%emt 0:01:19]} O-O {[%emt 0:00:07]} 7. Qc2 {[%emt 0:04:41]} c6 {[%emt 0:01:34]} 8. O-O {[%emt 0:02:57]} a5 {[%emt 0:01:07] 8...Nbd7 gains popularity. E11: Bogo-Indian.} 9. a4 {[%emt 0:04:12]} Na6 {[%emt 0:06:02][%cal Bb8a6,Ba6b4,Bb4d5][%mdl 32] [#]} 10. Rd1 $146 {[%emt 0:06:48]} ({Predecessor:} 10. Rc1 Nb4 11. Bxb4 Bxb4 12. Ne5 Nd7 13. Nd3 Be7 14. Nd2 Nb8 15. Qc3 Na6 16. c5 {0-1 (43) Sumets,A (2585)-Girish,A (2444) Llucmajor 2019}) 10... Ne4 {[%emt 0:06:58] The position is equal.} 11. Be3 {[%emt 0:05:10]} (11. Bc3 $5) 11... Nb4 {[%emt 0:01:12]} 12. Qb3 {[%emt 0:00:37]} b6 {[%emt 0:15:49]} 13. Nbd2 {[%emt 0:04:03]} (13. cxd5 $11 cxd5 14. Ne5) 13... Nd6 $17 {[%emt 0:03:26] Black is more active.} 14. Bf4 {[%emt 0:10:28]} dxc4 {[%emt 0:11:30]} 15. Qc3 {[%emt 0:00:11]} Nd5 {[%emt 0:05:58]} 16. Qc2 {[%emt 0:00:03]} Ba6 {[%emt 0:02:39]} ({Reject} 16... Nxf4 17. gxf4 Qc7 18. Ne5 $11) (16... b5 $1 $17) 17. Bxd6 $11 {[%emt 0:01:31]} Qxd6 {[%emt 0:01:53]} 18. Nxc4 {[%emt 0:00:41]} Nb4 {[%emt 0:05:16]} 19. Qb3 {[%emt 0:02:45]} Qc7 {[%emt 0:01:31]} 20. e3 {[%emt 0:04:47]} Rad8 {[%emt 0:03:31]} 21. Nce5 {[%emt 0:13:29]} (21. Na3 $11 {is more appropriate.}) 21... g6 {[%emt 0:00:55]} 22. Rac1 {[%emt 0:02:12][%cal Oe5c6]} c5 {[%emt 0:00:44]} 23. h4 {[%emt 0:09:21]} Bb7 {[%emt 0:09:40]} 24. dxc5 {[%emt 0:06:00]} Bd5 {[%emt 0:05:19] A strong pair of Bishops.} 25. Nc4 {[%emt 0:00:04]} Qxc5 {[%emt 0:04:17]} (25... bxc5 $15 26. Nfe5 Bf6) 26. Nd4 {[%emt 0:04:40]} Rc8 {[%emt 0:06:29][%cal Rd5c4]} 27. Bxd5 {[%emt 0:03:34]} exd5 {[%emt 0:00:11]} 28. Ne5 {[%emt 0:00:15]} Qxc1 {[%emt 0:00:46]} 29. Rxc1 {[%emt 0:00:08]} Rxc1+ {[%emt 0:00:05]} 30. Kg2 {[%emt 0:00:12]} Rfc8 {[%emt 0:00:55]} 31. e4 {[%emt 0:02:51]} Bf6 {[%emt 0:01:36]} 32. Ndf3 {[%emt 0:00:44]} Bg7 {[%emt 0:03:10]} (32... Kg7 $11) 33. exd5 $18 {[%emt 0:00:37]} R1c5 {[%emt 0:00:01] [#]} 34. Nd7 $2 {[%emt 0:01:36]} (34. Nxf7 $1 $18 {[%mdl 512] Threatens to win with d6.} Kxf7 35. Ng5+ Kg8 36. Qe3) 34... Rxd5 $11 {[%emt 0:01:03]} 35. Nxb6 {[%emt 0:00:10]} Rd3 $36 {[%emt 0:00:01][%mdl 2048] Black fights for an advantage.} 36. Qxd3 {[%emt 0:00:13]} Nxd3 {[%emt 0:00:02]} 37. Nxc8 {[%emt 0:00:19]} Nxb2 {[%emt 0:02:00][%mdl 4096] Endgame KBN-KNN} 38. Ne7+ {[%emt 0:01:18]} (38. Nd2 $1 $11) 38... Kf8 $17 {[%emt 0:00:10]} 39. Nc6 {[%emt 0:00:05]} Bc3 {[%emt 0:00:13]} 40. Nfd4 $1 {[%emt 0:00:11]} Ke8 $1 {[%emt 0:00:33]} 41. Kf3 {[%emt 0:05:44] [#]} Kd7 $1 {[%emt 0:00:35]} ({Much worse is} 41... Nxa4 $6 42. Nb3 $11) 42. Ne5+ {[%emt 0:00:29]} Ke7 {[%emt 0:01:10]} 43. Ke4 {[%emt 0:01:13] [#]} (43. Ke3 $17) 43... Nxa4 {[%emt 0:00:26]} (43... f6 $1 $19 {[%cal Rf6e5]} 44. Nef3 (44. Nec6+ Kd6 $17) 44... Nxa4) 44. Kd5 {[%emt 0:01:43]} (44. Nb3 $17) 44... Nb6+ $19 {[%emt 0:00:32]} 45. Kc5 {[%emt 0:01:20]} (45. Ke4 {is the only way for White.} f6 46. Nef3) 45... Nd7+ {[%emt 0:00:21]} 46. Kc4 {[%emt 0:00:15] Nec6+ is the strong threat.} Nxe5+ {[%emt 0:01:36]} 47. Kxc3 {[%emt 0:00:02] KN-KN} Kd6 {[%emt 0:00:13]} 48. f4 {[%emt 0:01:03]} Nc6 {[%emt 0:00:17]} 49. Nf3 {[%emt 0:00:13]} f6 {[%emt 0:00:34]} 50. Kc4 {[%emt 0:00:07]} Ke6 {[%emt 0:00:50]} 51. Kc5 {[%emt 0:00:24] [#]} (51. g4 $142 a4 52. Kc5) 51... Kf5 $1 {[%emt 0:00:21]} 52. Kxc6 {[%emt 0:00:21] KN-KP} (52. Nh2 a4) 52... a4 {[%emt 0:00:29][%cal Ba5a4,Ba4a3,Ba3a2][%mdl 32]} 53. Kd5 {[%emt 0:00:35]} a3 {[%emt 0:00:15]} 54. h5 {[%emt 0:00:53]} a2 {[%emt 0:00:41]} 55. Nd4+ {[%emt 0:00:09]} Kg4 {[%emt 0:00:04]} 56. Nc2 {[%emt 0:00:07]} Kxh5 {[%emt 0:01:19]} (56... gxh5 $142 57. Kc4 Kxg3 58. Kb3 h4 59. Kxa2 Kxf4 60. Nd4 h3 61. Ne2+ Kg4 62. Nc3 h2 63. Ne4 Kf3 64. Nd2+ Kf4 65. Nc4 h5 66. Nd2 h1=Q 67. Nb1 h4 68. Nc3 Qg2+ 69. Kb3 h3 70. Kc4 h2 71. Nd5+ Kg5 72. Kd4 h1=Q 73. Nc3 Qd2+ 74. Kc5 Qxc3+ 75. Kd6 Qb7 76. Ke6 Qe5#) 57. f5 {[%emt 0:01:53]} gxf5 {[%emt 0:00:14] Black mates.} 58. Ke6 {[%emt 0:00:07]} Kg4 {[%emt 0:00:28]} 59. Kxf6 {[%emt 0:00:19]} h5 {[%emt 0:00:36] Black used his chance.  Weighted Error Value: White=0.74/Black=0.22 (precise)} 0-1

[Event "34th Pula Open 2022"]
[Site "Pula"]
[Date "2022.06.21"]
[Round "5.9"]
[White "Maier, Christian"]
[Black "Medic, Mirjana"]
[Result "1/2-1/2"]
[ECO "C01"]
[WhiteElo "2299"]
[BlackElo "2167"]
[Annotator "TA"]
[PlyCount "97"]
[EventDate "2022.06.18"]
[EventType "swiss"]
[EventCountry "CRO"]
[SourceTitle "playchess.com"]
[Source "ChessBase"]
[SourceQuality "1"]
[TimeControl "5400+30"]

{[%evp 11,97,0,4,-5,0,0,0,0,32,12,72,27,25,29,20,0,18,15,12,12,18,18,87,93,66,75,70,25,28,22,25,-250,0,0,0,0,0,0,0,0,5,0,18,18,18,18,18,18,18,18,18,18,18,18,18,18,18,18,18,18,18,18,18,18,27,16,27,16,16,16,16,16,16,16,16,9,9,9,9,5,5,5,5,5,9,9,9,22]} 1. e4 {[%emt 0:00:04]} e6 {[%emt 0:00:05]} 2. d4 {[%emt 0:00:30]} d5 {[%emt 0:00:30]} 3. Nc3 {[%emt 0:00:30]} Nf6 {[%emt 0:00:39]} 4. exd5 {[%emt 0:01:41]} exd5 {[%emt 0:00:07]} 5. Bg5 {[%emt 0:00:06]} c6 {[%emt 0:02:05]} 6. Bd3 {[%emt 0:00:09]} Be7 {[%emt 0:01:53]} 7. Nge2 {[%emt 0:00:08] C01: French: Exchange Variation.} Nbd7 {[%emt 0:06:04]} (7... O-O {with more complications.} 8. Ng3 Bd6 9. Qd2 Re8+) 8. O-O {[%emt 0:00:18]} O-O {[%emt 0:00:54]} 9. Ng3 {[%emt 0:00:31]} g6 {[%emt 0:01:25] Against Nf5} 10. Qd2 {[%emt 0:00:35]} (10. Re1 {keeps more tension.} Re8 11. Qf3 Kg7 12. Qe3) 10... Re8 {[%emt 0:05:44]} (10... Ne8 $11 11. Bh6 Ng7) 11. Rae1 {[%emt 0:00:35] White is more active.} (11. f4 $5 {[%cal Rf4f5]}) 11... Nf8 {[%emt 0:02:02] [#]} 12. h3 $146 {[%emt 0:19:41]} ({Predecessor:} 12. f4 Ne6 13. Bxf6 Bxf6 14. f5 Nc7 15. Qf2 Rxe1 16. Rxe1 Bd7 17. Nb1 Qf8 18. Nd2 Re8 19. c3 Rxe1+ 20. Qxe1 Qe8 21. Nf3 Qxe1+ 22. Nxe1 Ne8 23. Kf2 {½-½ (23) Reichardt,M (1700)-Weiss,L (1959) LSS email 2010}) 12... Ne6 {[%emt 0:01:25]} 13. Be3 {[%emt 0:00:07]} Bd7 {[%emt 0:05:09]} 14. Nce2 {[%emt 0:01:02]} c5 {[%emt 0:01:52]} 15. c3 {[%emt 0:00:08]} c4 {[%emt 0:04:24]} 16. Bb1 {[%emt 0:00:25]} Bd6 {[%emt 0:00:23] [#]} (16... Ng7 $11) 17. f4 $1 $16 {[%emt 0:10:34]} Ng7 {[%emt 0:05:51]} 18. f5 $1 {[%emt 0:00:00]} Nfh5 {[%emt 0:03:51]} 19. fxg6 {[%emt 0:00:00]} fxg6 {[%emt 0:09:38]} 20. Nxh5 {[%emt 0:00:16]} Nxh5 {[%emt 0:00:08]} 21. g4 $2 {[%emt 0:02:54][%mdl 8192] [#]} (21. Nf4 $11 Ng3 22. Rf3 (22. Nxd5 Nxf1 23. Rxf1 Rf8 $11)) 21... Ng3 $2 {[%emt 0:02:47]} (21... Qh4 $1 $19 22. gxh5 Bxh3) 22. Nxg3 $11 {[%emt 0:00:00]} Bxg3 {[%emt 0:00:03]} 23. Bf2 $1 {[%emt 0:00:34]} Rxe1 {[%emt 0:09:51]} 24. Qxe1 {[%emt 0:00:35]} Bxf2+ {[%emt 0:01:53]} 25. Qxf2 {[%emt 0:00:28] Black must now prevent Qf7+.} Qe7 {[%emt 0:01:05] Prevents Qf7+.} 26. Re1 {[%emt 0:01:28]} Qf7 {[%emt 0:02:42]} 27. Re5 {[%emt 0:01:14]} Bc6 {[%emt 0:05:49]} 28. Bc2 {[%emt 0:00:28]} Re8 {[%emt 0:02:14]} 29. Qxf7+ {[%emt 0:05:53]} Kxf7 {[%emt 0:00:06]} 30. Rxe8 {[%emt 0:00:06]} Bxe8 {[%emt 0:00:36][%mdl 4096] Endgame KB-KB} 31. g5 {[%emt 0:00:07]} Bd7 {[%emt 0:00:51]} 32. Kg2 {[%emt 0:00:08]} Ke7 {[%emt 0:02:32]} 33. Kg3 {[%emt 0:01:46]} Kd6 {[%emt 0:00:08]} 34. h4 {[%emt 0:00:08][%cal Bh3h4,Bh4h5,Bh5h6][%mdl 32]} Be8 {[%emt 0:01:46]} 35. Kf4 {[%emt 0:00:14]} b6 {[%emt 0:01:29]} 36. h5 {[%emt 0:04:05]} b5 {[%emt 0:00:44]} 37. h6 {[%emt 0:01:46]} Ke6 {[%emt 0:01:51]} 38. b3 {[%emt 0:01:45]} Kd6 {[%emt 0:01:44]} 39. bxc4 {[%emt 0:01:04]} bxc4 {[%emt 0:00:03] The position is equal.} 40. Ke3 {[%emt 0:00:55]} Kc7 {[%emt 0:00:56]} 41. Kd2 {[%emt 0:00:34]} a5 {[%emt 0:00:35]} 42. Kc1 {[%emt 0:00:49]} Kb6 {[%emt 0:01:19]} 43. Kb2 {[%emt 0:00:43]} Kb5 {[%emt 0:01:05]} 44. Ka3 {[%emt 0:00:26] Ba4+ would kill now.} Kb6 {[%emt 0:00:06]} 45. Bd1 {[%emt 0:00:20]} Bd7 {[%emt 0:00:41]} 46. Bf3 {[%emt 0:01:40]} Be6 {[%emt 0:00:07]} 47. Be2 {[%emt 0:00:34]} Bd7 {[%emt 0:00:39]} 48. Bd1 {[%emt 0:02:34]} Ka6 {[%emt 0:00:30]} 49. Bc2 {[%emt 0:00:30] Weighted Error Value: White=0.15 (very precise) /Black=0.15 (very precise)} 1/2-1/2

[Event "34th Pula Open 2022"]
[Site "Pula"]
[Date "2022.06.21"]
[Round "5.10"]
[White "Novosel, Lovro"]
[Black "Seres, Bela"]
[Result "0-1"]
[ECO "A11"]
[WhiteElo "2279"]
[BlackElo "2164"]
[Annotator "TA"]
[PlyCount "164"]
[EventDate "2022.06.18"]
[EventType "swiss"]
[EventCountry "CRO"]
[SourceTitle "playchess.com"]
[Source "ChessBase"]
[SourceQuality "1"]
[TimeControl "5400+30"]

{[%evp 13,164,0,39,-9,0,-30,-26,-14,0,0,-1,-25,-33,-32,0,-17,-16,-18,-22,-17,-17,-41,-41,-36,-14,-20,-16,-8,0,2,65,68,87,64,64,62,57,24,29,27,64,33,43,25,22,22,83,43,82,93,101,115,122,122,122,114,121,104,136,57,80,47,56,47,60,26,26,28,33,8,116,22,64,35,87,0,0,0,145,145,145,145,145,145,145,145,98,0,0,0,0,0,0,0,0,0,0,0,0,0,0,0,0,0,0,0,0,0,0,0,0,0,0,0,0,0,0,0,0,0,0,0,0,0,0,0,0,0,0,-144,-144,-144,-144,-131,-131,-131,-131,-201,-201,-4386,-2222,-29977,-29978,-29977,-29978,-29977,-29974,-29975,-29974,-29969,-29949,-29982,-29983]} 1. Nf3 {[%emt 0:00:05]} d5 {[%emt 0:00:14]} 2. g3 {[%emt 0:00:26]} Bf5 {[%emt 0:00:46]} 3. Bg2 {[%emt 0:00:54]} e6 {[%emt 0:00:31]} 4. O-O {[%emt 0:00:11]} Nf6 {[%emt 0:00:20]} 5. d3 {[%emt 0:01:02]} h6 {[%emt 0:00:37]} 6. c4 {[%emt 0:00:18]} c6 {[%emt 0:00:36]} 7. Nc3 {[%emt 0:05:35]} Be7 {[%emt 0:00:50]} 8. a3 {[%emt 0:03:34] A11: English Opening: 1...c6.} (8. Qb3 $14 {is superior.} Qc8 9. cxd5) 8... O-O {[%emt 0:06:14]} 9. b3 {[%emt 0:05:10]} Nbd7 {[%emt 0:00:30]} 10. Bb2 {[%emt 0:00:11] Black has an edge.} a5 {[%emt 0:04:36]} 11. Re1 {[%emt 0:01:30]} Bh7 {[%emt 0:03:53]} 12. cxd5 {[%emt 0:08:31]} exd5 {[%emt 0:01:49]} 13. Rc1 {[%emt 0:04:48] [#]} Nc5 $146 {[%emt 0:04:03]} ({Predecessor:} 13... Re8 14. Bh3 Bd6 15. Ra1 Qb6 16. d4 a4 17. b4 Qa7 18. e3 Nb6 19. Ne5 Re7 {0-1 (94) Tutisani,N (2347)-Mammadov,Z (2421) Nakhchivan 2017}) 14. Nb1 {[%emt 0:06:07]} Qb6 {[%emt 0:11:08]} 15. Nbd2 {[%emt 0:01:23]} Nfd7 {[%emt 0:02:27]} 16. Qc2 {[%emt 0:02:32]} Rfe8 {[%emt 0:04:44]} 17. Ne5 {[%emt 0:05:59]} Nxe5 {[%emt 0:08:00]} 18. Bxe5 {[%emt 0:04:28]} Nd7 {[%emt 0:00:23]} 19. Bb2 {[%emt 0:00:35]} Bc5 {[%emt 0:00:10]} 20. e3 {[%emt 0:01:40]} Bd6 {[%emt 0:08:42]} 21. e4 {[%emt 0:10:59]} Be5 {[%emt 0:15:45]} (21... Bc5 $11 22. Rf1 dxe4 23. dxe4 Bg6) 22. exd5 $14 {[%emt 0:05:30] And now Nc4 would win.} Bxb2 {[%emt 0:00:35]} 23. Qxb2 {[%emt 0:03:23]} cxd5 $1 {[%emt 0:00:41]} 24. Bxd5 {[%emt 0:02:07]} Bxd3 {[%emt 0:00:49]} 25. Nc4 {[%emt 0:00:38]} Bxc4 {[%emt 0:04:55]} 26. Bxc4 {[%emt 0:00:07]} Qf6 {[%emt 0:00:36]} 27. Qxf6 {[%emt 0:04:44]} Nxf6 {[%emt 0:00:04]} 28. Bb5 {[%emt 0:00:43]} Rxe1+ {[%emt 0:06:45]} 29. Rxe1 $11 {[%emt 0:00:02][%mdl 4096] Endgame KRB-KRN} Nd5 {[%emt 0:01:11] Against Re7} (29... Kf8 $11 {remains equal.}) 30. Re5 {[%emt 0:04:29]} Nc3 {[%emt 0:05:43]} 31. Bc4 {[%emt 0:00:46]} a4 {[%emt 0:01:10][%cal Ob7b5]} 32. Re3 {[%emt 0:04:26]} b5 {[%emt 0:03:19]} 33. Rxc3 {[%emt 0:01:51]} bxc4 {[%emt 0:00:01]} 34. bxc4 $16 {[%emt 0:03:35] KR-KR} Kf8 {[%emt 0:00:37]} 35. Kf1 {[%emt 0:02:27]} Rb8 {[%emt 0:00:23]} 36. Ke2 {[%emt 0:00:14]} ({White should try} 36. c5 $16) 36... Rb2+ $14 {[%emt 0:00:13]} 37. Ke3 {[%emt 0:00:10]} Ke7 {[%emt 0:00:17]} 38. c5 {[%emt 0:00:44][%cal Bc4c5,Bc5c6][%mdl 32]} Kd7 {[%emt 0:00:05]} 39. c6+ {[%emt 0:00:17]} Kc7 {[%emt 0:00:02]} 40. h4 {[%emt 0:00:20]} g6 {[%emt 0:02:12]} 41. f4 {[%emt 0:01:58]} Rb5 {[%emt 0:00:53]} (41... f5 $11) 42. Ke4 {[%emt 0:01:26]} (42. g4 $1 $16) 42... f6 {[%emt 0:00:49]} (42... Rb3 43. Rxb3 axb3 44. Kd3 $18) 43. Kd4 {[%emt 0:01:06] aiming for g4.} h5 {[%emt 0:01:14] [#]} (43... Rb3 44. Rxb3 axb3 45. Kc3 $18) (43... f5 $1 $14) 44. Re3 {[%emt 0:00:55]} ({White should play} 44. Rc4 $1 $16) 44... Kd6 $11 {[%emt 0:00:32]} (44... Rb3 $2 45. Rxb3 axb3 46. Kc3 $18) 45. Rc3 {[%emt 0:01:57]} Rd5+ {[%emt 0:00:28]} (45... Kc7 $1 $11 {keeps the balance.}) 46. Ke4 {[%emt 0:00:26] Intending c7 and mate.} f5+ {[%emt 0:00:20] [#]} 47. Ke3 $1 {[%emt 0:00:01] Threatening mate with c7.} Kc7 {[%emt 0:00:01]} 48. Rc4 {[%emt 0:00:24]} Rb5 {[%emt 0:00:41]} 49. Rxa4 {[%emt 0:00:29]} Rb3+ {[%emt 0:01:20]} 50. Kf2 {[%emt 0:00:16]} (50. Kd4 $16) 50... Kxc6 {[%emt 0:00:13]} 51. Ra6+ {[%emt 0:00:06]} Kd5 $1 {[%emt 0:00:02]} 52. Rxg6 {[%emt 0:00:36]} Rxa3 {[%emt 0:00:30]} 53. Rb6 {[%emt 0:02:13]} Ra2+ {[%emt 0:00:16]} 54. Kf3 {[%emt 0:00:18]} Ra3+ {[%emt 0:00:01]} 55. Kg2 $1 {[%emt 0:00:07]} Ra2+ {[%emt 0:00:12]} 56. Kh3 {[%emt 0:00:06]} Ke4 {[%emt 0:00:26]} 57. Rb3 {[%emt 0:00:58]} Rc2 {[%emt 0:00:05]} 58. Rb4+ $1 {[%emt 0:01:20]} Kf3 {[%emt 0:00:03]} 59. Rb3+ {[%emt 0:00:18]} Ke4 {[%emt 0:00:02]} 60. Rb1 {[%emt 0:00:45]} Kf3 {[%emt 0:00:13]} 61. Rf1+ {[%emt 0:00:06]} Ke4 {[%emt 0:00:18]} 62. Rg1 {[%emt 0:01:19]} Kf3 {[%emt 0:00:05]} 63. Re1 {[%emt 0:00:35]} Ra2 {[%emt 0:00:10]} 64. Rb1 {[%emt 0:00:24]} Rc2 {[%emt 0:00:39]} 65. Rb3+ {[%emt 0:00:07]} Ke4 {[%emt 0:00:01]} 66. Rb4+ {[%emt 0:01:08]} Kf3 {[%emt 0:00:03]} 67. Rb5 {[%emt 0:00:11]} Rc1 {[%emt 0:00:04][%cal Rc1h1]} 68. Rb3+ {[%emt 0:00:06]} Ke4 {[%emt 0:00:02]} 69. Rb2 {[%emt 0:00:10]} Kf3 {[%emt 0:00:05]} 70. Kh2 {[%emt 0:00:07] Against Rh1+} Kg4 {[%emt 0:00:38]} 71. Kg2 {[%emt 0:00:12]} (71. Rb3 $1 $11) 71... Rc3 $17 {[%emt 0:00:06]} 72. Rb7 {[%emt 0:02:49][%cal Rb7g7]} Rxg3+ {[%emt 0:00:19]} 73. Kh2 {[%emt 0:00:04]} Rf3 {[%emt 0:01:23]} (73... Kxf4 {gets mated.} 74. Rb4+ Kf3 75. Rb3+ Kf4 76. Rxg3 Ke5 77. Rg5 Kf4 78. Kg2) ({Reject} 73... Kxh4 $6 74. Rf7 $11) 74. Kg2 {[%emt 0:00:56]} Rxf4 {[%emt 0:00:09]} 75. Rb3 {[%emt 0:00:16]} (75. Rf7 $17 {keeps fighting.}) 75... Ra4 $19 {[%emt 0:00:09] ...Ra2+ is the strong threat.} ({Worse is} 75... Kxh4 76. Rb8) 76. Kf2 $2 {[%emt 0:00:35]} (76. Rb2) 76... Ra2+ {[%emt 0:00:20]} 77. Ke3 {[%emt 0:00:05]} f4+ {[%emt 0:00:05][%cal Bf5f4,Bf4f3,Bf3f2][%mdl 32] Black mates.} 78. Kd3 {[%emt 0:00:39]} f3 {[%emt 0:01:43]} 79. Rb8 {[%emt 0:00:38]} Re2 {[%emt 0:00:39]} 80. Rf8 {[%emt 0:00:13]} Re7 {[%emt 0:01:01]} 81. Kd2 {[%emt 0:00:14]} Kg3 {[%emt 0:00:04]} 82. Rf5 {[%emt 0:00:42]} f2 {[%emt 0:00:22] Never resign too early!  Weighted Error Value: White=0.15 (very precise) /Black=0.19 (very precise)} 0-1